bitfinex-derivatives/quotes_BTCF0:USTF0_20251229
["timestamp","ask_amount","ask_price","bid_price","bid_amount"]
[1766993158201,0.011169,89639.0,89620.0,0.00016735]
[1766993158599,0.011169,89639.0,89625.0,0.0111707]
[1766993159099,0.00016735,89640.0,89625.0,0.0111707]
[1766993159405,0.0111692,89638.0,89622.0,0.011171]
[1766993159800,0.00016735,89640.0,89624.0,0.0111708]
[1766993160800,0.011169,89639.0,89621.0,0.0111711]
[1766993161105,0.01133625,89640.0,89623.0,0.0111709]
[1766993163503,0.00016735,89640.0,89625.0,0.0111707]
[1766993164106,0.00016735,89640.0,89628.0,0.0111703]
[1766993164496,0.00016735,89640.0,89626.0,0.0111705]
[1766993165205,0.00016735,89640.0,89620.0,0.00016735]
[1766993165408,0.00016735,89640.0,89627.0,0.0111705]
[1766993166701,0.00016735,89640.0,89629.0,0.0111701]
[1766993167002,0.00016735,89640.0,89626.0,0.0111705]
[1766993167807,0.011169,89639.0,89623.0,0.0111709]
[1766993168106,0.01133625,89640.0,89625.0,0.0111707]
[1766993168301,0.00016735,89640.0,89625.0,0.0111707]
[1766993169507,0.05616735,89640.0,89625.0,0.0111707]
[1766993170508,0.05616735,89640.0,89627.0,0.0111704]
[1766993171909,0.06733625,89640.0,89624.0,0.0111708]
[1766993172110,0.05616735,89640.0,89620.0,0.00016735]
[1766993172809,0.05616735,89640.0,89627.0,0.0111704]
[1766993173509,0.05616735,89640.0,89620.0,0.00016735]
[1766993174009,0.05616735,89640.0,89628.0,0.0111703]
[1766993174310,0.05616735,89640.0,89627.0,0.0111704]
[1766993174813,0.05616735,89640.0,89626.0,0.0111705]
[1766993176511,0.23395774,89640.0,89626.0,0.0111705]
[1766993176712,0.05616735,89640.0,89620.0,0.00016735]
[1766993177008,0.23395774,89640.0,89620.0,0.00016735]
[1766993177199,0.23395774,89640.0,89626.0,0.0111706]
[1766993177404,0.23395774,89640.0,89606.0,0.09492]
[1766993177405,0.0111696,89635.0,89606.0,0.09492]
[1766993177604,0.17779039,89622.0,89608.0,0.0111727]
[1766993177810,0.17779039,89622.0,89607.0,0.0111729]
[1766993178004,0.056,89625.0,89610.0,0.0111726]
[1766993178203,0.17779039,89620.0,89610.0,0.0111726]
[1766993178413,0.056,89625.0,89610.0,0.0111726]
[1766993178614,0.02319626,89624.0,89610.0,0.0111726]
[1766993178915,0.02319626,89623.0,89610.0,0.0111726]
[1766993179114,0.02319626,89622.0,89610.0,0.0111726]
[1766993179314,0.02319626,89621.0,89608.0,0.0111727]
[1766993179508,0.02319626,89620.0,89608.0,0.0111727]
[1766993179704,0.02319626,89619.0,89608.0,0.0111727]
[1766993179908,0.02319626,89618.0,89608.0,0.0111727]
[1766993180109,0.02319626,89617.0,89608.0,0.0111727]
[1766993180306,0.00016735,89622.0,89611.0,0.0111724]
[1766993180504,0.02314076,89621.0,89611.0,0.0111724]
[1766993180702,0.02314076,89620.0,89611.0,0.0111724]
[1766993180915,0.02314076,89619.0,89611.0,0.0111724]
[1766993181114,0.02314076,89618.0,89611.0,0.0111724]
[1766993181325,0.00016735,89622.0,89611.0,0.0111724]
[1766993181516,0.02313629,89621.0,89611.0,0.0111724]
[1766993181718,0.02313629,89620.0,89611.0,0.0111724]
[1766993181915,0.02313629,89619.0,89611.0,0.0111724]
[1766993182109,0.02313629,89618.0,89611.0,0.0111724]
[1766993182309,0.00016735,89622.0,89611.0,0.0111724]
[1766993182510,0.02313294,89621.0,89611.0,0.0111724]
[1766993182710,0.02313294,89620.0,89611.0,0.0111724]
[1766993182911,0.02313294,89619.0,89611.0,0.0111724]
[1766993183112,0.00016735,89622.0,89611.0,0.0111724]
[1766993183113,0.02313294,89618.0,89611.0,0.0111724]
[1766993183312,0.00016735,89622.0,89611.0,0.0111724]
[1766993183619,0.02313015,89621.0,89611.0,0.0111724]
[1766993183818,0.02313015,89620.0,89611.0,0.0111724]
[1766993184015,0.02313015,89619.0,89611.0,0.0111724]
[1766993184216,0.00016735,89622.0,89611.0,0.0111724]
[1766993184417,0.02312786,89621.0,89611.0,0.0111724]
[1766993184618,0.02312786,89620.0,89611.0,0.0111724]
[1766993184914,0.02312786,89619.0,89611.0,0.0111724]
[1766993185122,0.00016735,89622.0,89611.0,0.0111724]
[1766993185422,0.02312786,89621.0,89611.0,0.0111724]
[1766993185621,0.02312786,89620.0,89611.0,0.0111724]
[1766993185823,0.02312786,89619.0,89611.0,0.0111724]
[1766993186123,0.00016735,89622.0,89611.0,0.0111724]
[1766993186419,0.02312598,89621.0,89611.0,0.0111724]
[1766993186614,0.02312598,89620.0,89611.0,0.0111724]
[1766993186814,0.02312598,89619.0,89611.0,0.0111724]
[1766993187013,0.00016735,89622.0,89611.0,0.0111724]
[1766993187221,0.02312435,89621.0,89611.0,0.0111724]
[1766993187418,0.02312435,89620.0,89606.0,0.09508735]
[1766993187614,0.02312435,89619.0,89606.0,0.09508735]
[1766993187919,0.02312435,89618.0,89606.0,0.09508735]
[1766993188127,0.17779039,89621.0,89609.0,0.0111726]
[1766993188320,0.02312278,89620.0,89609.0,0.0111726]
[1766993188521,0.02312278,89619.0,89609.0,0.0111726]
[1766993188833,0.17779039,89621.0,89611.0,0.0111724]
[1766993189024,0.02312158,89620.0,89611.0,0.0111724]
[1766993189217,0.02312158,89619.0,89611.0,0.0111724]
[1766993189417,0.00016735,89622.0,89611.0,0.0111724]
[1766993189618,0.02312062,89621.0,89611.0,0.0111724]
[1766993189817,0.02312062,89620.0,89611.0,0.0111724]
[1766993190521,0.02312062,89620.0,89608.0,0.0111728]
[1766993191326,0.02312062,89620.0,89606.0,0.09508735]
[1766993192025,0.20091101,89620.0,89606.0,0.09508735]
[1766993192228,0.02312062,89619.0,89610.0,0.0111725]
[1766993192428,0.02312062,89618.0,89610.0,0.0111725]
[1766993192725,0.02312062,89617.0,89610.0,0.0111725]
[1766993192928,0.02312062,89616.0,89610.0,0.0111725]
[1766993193126,0.00016735,89622.0,89610.0,0.0111725]
[1766993193321,0.17779039,89620.0,89610.0,0.0111725]
[1766993193521,0.02311742,89619.0,89612.0,0.0111723]
[1766993193828,0.02311742,89618.0,89612.0,0.0111723]
[1766993194018,0.00016735,89622.0,89612.0,0.0111723]
[1766993194019,0.02311742,89617.0,89612.0,0.0111723]
[1766993194322,2e-08,89616.0,89612.0,0.0111723]
[1766993194526,0.17795774,89622.0,89612.0,0.0111723]
[1766993195128,0.17795774,89622.0,89609.0,0.0111727]
[1766993195424,0.17779039,89619.0,89606.0,0.09508735]
[1766993195614,0.0111723,89613.0,89591.0,0.09492]
[1766993195927,0.17779039,89610.0,89596.0,0.0111743]
[1766993196119,0.17779039,89610.0,89593.0,0.0111747]
[1766993196319,0.17779039,89610.0,89590.0,0.11158783]
[1766993196320,0.1060928,89609.0,89590.0,0.011175]
[1766993196525,0.1060928,89609.0,89591.0,0.00016735]
[1766993197030,0.1060928,89609.0,89592.0,0.0111747]
[1766993197825,0.09492,89609.0,89592.0,0.0111747]
[1766993198331,0.09492,89609.0,89594.0,0.0111745]
[1766993198823,0.09492,89609.0,89593.0,0.0111746]
[1766993199327,0.09492,89609.0,89595.0,0.0111743]
[1766993200313,0.09492,89609.0,89593.0,0.00016735]
[1766993200518,0.09492,89609.0,89593.0,0.01134195]
[1766993201718,0.1060928,89609.0,89593.0,0.00016735]
[1766993201924,0.17779039,89603.0,89591.0,0.05396]
[1766993202124,0.056,89602.0,89591.0,0.05396]
[1766993202325,0.17779039,89601.0,89591.0,0.05396]
[1766993202527,0.056,89602.0,89591.0,0.05396]
[1766993202723,0.056,89602.0,89591.0,0.0123]
[1766993202924,0.00016735,89611.0,89573.0,0.0111771]
[1766993202925,0.17779039,89601.0,89573.0,0.0111771]
[1766993203228,0.00016735,89611.0,89581.0,0.0111762]
[1766993203229,0.33992429,89600.0,89581.0,0.0111762]
[1766993203425,0.09496,89599.0,89581.0,0.0111762]
[1766993203822,0.17779039,89591.0,89575.0,0.0111769]
[1766993204033,0.0111751,89590.0,89567.0,0.09496]
[1766993204228,0.0111751,89590.0,89574.0,0.0111771]
[1766993204431,0.056,89591.0,89567.0,0.09496]
[1766993204627,0.17779039,89590.0,89567.0,0.09496]
[1766993204932,0.17779039,89590.0,89576.0,0.0111768]
[1766993208537,0.17779039,89590.0,89578.0,0.0111765]
[1766993210536,0.056,89591.0,89580.0,0.0111762]
[1766993211940,0.056,89591.0,89573.0,0.04144]
[1766993212128,0.056,89591.0,89585.0,0.0111757]
[1766993212437,0.05604,89596.0,89592.0,0.0111748]
[1766993212637,0.05604,89596.0,89589.0,0.0111752]
[1766993214229,0.05604,89596.0,89580.0,0.17779039]
[1766993215829,0.05604,89596.0,89591.0,0.0111748]
[1766993217638,0.05604,89596.0,89588.0,0.0111753]
[1766993218231,0.09512745,89601.0,89590.0,0.011175]
[1766993218232,0.00016745,89601.0,89590.0,0.011175]
[1766993218436,0.05604,89597.0,89590.0,0.011175]
[1766993220533,0.05604,89597.0,89592.0,0.0111748]
[1766993220939,0.05620745,89601.0,89594.0,0.0111745]
[1766993221140,0.05620745,89601.0,89591.0,0.0111749]
[1766993221444,0.05604,89603.0,89595.0,0.0111744]
[1766993222238,0.05604,89603.0,89597.0,0.0111742]
[1766993223447,0.05604,89603.0,89591.0,0.0111749]
[1766993223645,0.05604,89603.0,89593.0,0.0111747]
[1766993224940,0.05604,89603.0,89595.0,0.0111744]
[1766993228348,0.05604,89603.0,89590.0,0.17779039]
[1766993229452,0.067213,89607.0,89590.0,0.17779039]
[1766993229650,0.05604,89607.0,89590.0,0.17779039]
[1766993229950,0.0111742,89598.0,89587.0,0.09496]
[1766993230244,0.0111746,89594.0,89587.0,0.09496]
[1766993231447,0.0111749,89592.0,89587.0,0.09496]
[1766993231648,0.0111752,89590.0,89585.0,0.151]
[1766993232150,0.0111736,89602.0,89586.0,0.05604]
[1766993232453,0.0111736,89602.0,89587.0,0.05604]
[1766993232649,0.0111737,89601.0,89581.0,0.11161897]
[1766993232853,0.0111732,89606.0,89579.0,5e-08]
[1766993232854,0.0111761,89582.0,89579.0,5e-08]
[1766993233048,0.0111761,89582.0,89574.0,0.05604]
[1766993233547,0.05604,89592.0,89574.0,0.05604]
[1766993233860,0.0111758,89585.0,89574.0,0.05604]
[1766993234946,0.011176,89583.0,89574.0,0.05604]
[1766993235349,0.00016745,89588.0,89574.0,0.05604]
[1766993238755,0.05604,89593.0,89575.0,0.0111769]
[1766993238952,0.05604,89594.0,89579.0,0.0111764]
[1766993239344,0.05604,89597.0,89585.0,0.0111757]
[1766993239553,0.05604,89597.0,89574.0,0.05604]
[1766993239761,0.00016745,89594.0,89577.0,0.00016745]
[1766993240052,0.00016745,89594.0,89584.0,0.0111757]
[1766993240252,0.00016745,89594.0,89577.0,0.00016745]
[1766993240556,0.00016745,89594.0,89586.0,0.0111755]
[1766993241556,0.00016745,89594.0,89588.0,0.0111753]
[1766993242146,0.0111717,89617.0,89588.0,0.0111752]
[1766993242356,0.0111724,89612.0,89582.0,0.05604]
[1766993242556,0.05604,89611.0,89595.0,0.0111744]
[1766993243255,0.05604,89611.0,89598.0,0.0111741]
[1766993244960,0.05604,89611.0,89600.0,0.0111737]
[1766993246362,0.00016745,89612.0,89606.0,0.011173]
[1766993246564,0.05604,89620.0,89601.0,0.11160029]
[1766993246769,0.05604,89623.0,89613.0,0.0111721]
[1766993247155,0.05604,89629.0,89605.0,0.0111731]
[1766993247462,0.05604,89629.0,89617.0,0.0111717]
[1766993247865,0.05604,89629.0,89614.0,0.01133935]
[1766993249169,0.0111704,89628.0,89604.0,0.05604]
[1766993249875,0.0111707,89626.0,89604.0,0.05604]
[1766993250077,0.05604,89629.0,89604.0,0.05604]
[1766993250078,0.0672103,89629.0,89604.0,0.05604]
[1766993250379,0.0672103,89629.0,89608.0,0.00016735]
[1766993250878,0.0672103,89629.0,89612.0,0.0111723]
[1766993252180,0.05604,89629.0,89612.0,0.0111723]
[1766993252681,0.05604,89629.0,89608.0,0.00016735]
[1766993252886,0.05604,89629.0,89615.0,0.0111719]
[1766993253285,0.05604,89629.0,89611.0,0.0111724]
[1766993253476,0.0672103,89629.0,89611.0,0.0111724]
[1766993255685,0.05604,89629.0,89608.0,0.00016735]
[1766993256080,0.05604,89629.0,89617.0,0.0111717]
[1766993256285,0.00016735,89632.0,89617.0,0.0111717]
[1766993256480,0.15096,89631.0,89617.0,0.0111717]
[1766993257580,0.00016735,89632.0,89618.0,0.0111716]
[1766993257787,0.056,89630.0,89618.0,0.0111716]
[1766993257987,0.09512735,89632.0,89610.0,0.0111725]
[1766993258189,0.056,89631.0,89608.0,0.00016735]
[1766993258388,0.056,89631.0,89609.0,0.11157725]
[1766993259980,0.0111702,89630.0,89609.0,0.11157725]
[1766993261183,0.056,89631.0,89613.0,0.0111721]
[1766993261388,0.056,89631.0,89609.0,0.0111726]
[1766993261587,0.0111709,89624.0,89608.0,0.00016735]
[1766993261775,0.0111709,89624.0,89608.0,0.01134015]
[1766993265385,0.0111706,89627.0,89610.0,0.0111726]
[1766993267483,0.0111702,89630.0,89608.0,0.00016735]
[1766993269184,0.0111702,89630.0,89612.0,0.0111722]
[1766993274498,0.056,89631.0,89610.0,0.0111725]
[1766993275697,0.056,89631.0,89618.0,0.0111715]
[1766993280201,0.056,89631.0,89615.0,0.0111719]
[1766993281700,0.056,89631.0,89608.0,0.00016735]
[1766993281701,0.011171,89623.0,89608.0,0.00016735]
[1766993281908,0.056,89631.0,89608.0,0.00016735]
[1766993282705,0.0111706,89627.0,89610.0,0.0111725]
[1766993282907,0.056,89626.0,89612.0,0.0111723]
[1766993283903,0.056,89626.0,89614.0,0.0111721]
[1766993284303,0.056,89626.0,89616.0,0.0111718]
[1766993285008,0.056,89626.0,89613.0,0.0111721]
[1766993285598,0.056,89626.0,89608.0,0.00016735]
[1766993285599,0.056,89625.0,89608.0,0.00016735]
[1766993285808,0.056,89625.0,89620.0,0.0111713]
[1766993286005,0.056,89625.0,89618.0,0.0111715]
[1766993286916,0.00016735,89632.0,89610.0,0.0111726]
[1766993287104,0.15096,89631.0,89620.0,0.0111712]
[1766993289114,0.056,89631.0,89620.0,0.0111712]
[1766993289715,0.056,89631.0,89617.0,0.0111716]
[1766993292413,0.056,89631.0,89619.0,0.0111714]
[1766993293213,0.056,89631.0,89616.0,0.0111718]
[1766993294415,0.056,89631.0,89615.0,0.0111719]
[1766993296519,0.056,89631.0,89620.0,0.2]
[1766993297220,0.01133725,89632.0,89620.0,0.2]
[1766993297420,0.056,89631.0,89620.0,0.2]
[1766993297822,0.056,89631.0,89589.0,0.04014582]
[1766993298023,0.0111733,89605.0,89573.0,0.09492]
[1766993298220,0.29336,89631.0,89580.0,0.0111763]
[1766993298221,0.15092,89604.0,89580.0,0.0111763]
[1766993298524,0.15092,89604.0,89590.0,0.17788614]
[1766993299021,0.0111741,89598.0,89588.0,0.00016735]
[1766993299209,0.02413347,89597.0,89588.0,0.00016735]
[1766993299408,0.011174,89599.0,89588.0,0.00016735]
[1766993299626,0.0240833,89598.0,89588.0,0.00016735]
[1766993299923,0.0111736,89602.0,89588.0,0.00016735]
[1766993302315,0.0111736,89602.0,89588.0,0.00011735]
[1766993302522,0.15092,89604.0,89588.0,0.00011735]
[1766993302824,0.18905994,89600.0,89588.0,0.00011735]
[1766993305924,0.17788614,89600.0,89577.0,0.0111767]
[1766993306918,0.17788614,89600.0,89580.0,0.00016735]
[1766993307324,0.0111743,89597.0,89580.0,0.00016735]
[1766993307524,0.056,89596.0,89580.0,0.00016735]
[1766993308521,0.056,89596.0,89574.0,0.15092]
[1766993308522,0.17788614,89590.0,89574.0,0.162097]
[1766993308824,0.23388614,89590.0,89574.0,0.011177]
[1766993309024,0.23388614,89590.0,89570.0,0.0111775]
[1766993309623,0.01134266,89589.0,89569.0,0.1061376]
[1766993309819,0.00016746,89589.0,89569.0,0.1061376]
[1766993310020,0.00016746,89589.0,89572.0,0.0111773]
[1766993310224,0.17788614,89582.0,89560.0,0.00013888]
[1766993310527,0.056,89583.0,89568.0,0.11163206]
[1766993310919,0.056,89583.0,89561.0,0.15096]
[1766993311319,0.056,89583.0,89562.0,0.11164327]
[1766993312226,0.056,89583.0,89571.0,0.0111774]
[1766993313530,0.056,89583.0,89573.0,0.0111771]
[1766993315232,0.056,89583.0,89575.0,0.0111769]
[1766993316635,0.056,89583.0,89572.0,0.0111773]
[1766993317833,0.056,89583.0,89571.0,0.0111774]
[1766993318232,0.056,89583.0,89563.0,0.0111784]
[1766993318925,0.056,89583.0,89564.0,0.11163517]
[1766993319836,0.17788614,89580.0,89564.0,0.11163517]
[1766993320028,0.056,89583.0,89564.0,0.11163517]
[1766993320230,0.056,89583.0,89561.0,0.15096]
[1766993320432,0.056,89583.0,89562.0,0.11164016]
[1766993322339,0.056,89583.0,89572.0,0.0111773]
[1766993322537,0.056,89583.0,89574.0,0.011177]
[1766993323125,0.056,89583.0,89561.0,0.15096]
[1766993323331,0.056,89583.0,89577.0,0.0111766]
[1766993323840,0.056,89583.0,89574.0,0.011177]
[1766993324538,0.056,89583.0,89576.0,0.0111768]
[1766993325844,0.056,89583.0,89561.0,0.15096]
[1766993326240,0.056,89583.0,89564.0,0.11163268]
[1766993326445,0.056,89583.0,89563.0,0.0111784]
[1766993327244,0.02413517,89582.0,89563.0,0.0111784]
[1766993327550,0.02413517,89581.0,89574.0,0.011177]
[1766993327758,0.056,89583.0,89574.0,0.011177]
[1766993327957,0.02413517,89582.0,89574.0,0.011177]
[1766993328153,0.02413517,89581.0,89574.0,0.011177]
[1766993328457,0.02413517,89580.0,89574.0,0.011177]
[1766993328654,0.02491975,89579.0,89574.0,0.011177]
[1766993328849,0.056,89583.0,89574.0,0.011177]
[1766993329049,0.02491975,89582.0,89574.0,0.011177]
[1766993329250,0.02491975,89581.0,89562.0,0.0111785]
[1766993329554,0.02491975,89580.0,89564.0,0.11163579]
[1766993329855,0.02491975,89579.0,89562.0,0.0111785]
[1766993330056,0.056,89583.0,89563.0,0.11164203]
[1766993330257,0.02492183,89582.0,89573.0,0.0111772]
[1766993330457,0.02492183,89581.0,89573.0,0.0111772]
[1766993330757,0.02492183,89580.0,89573.0,0.0111772]
[1766993330957,0.02492183,89579.0,89573.0,0.0111772]
[1766993331155,0.02492612,89578.0,89573.0,0.0111772]
[1766993331357,0.056,89583.0,89573.0,0.0111772]
[1766993331654,0.02492612,89582.0,89573.0,0.0111772]
[1766993331855,0.02492612,89581.0,89573.0,0.0111772]
[1766993332159,0.02492612,89580.0,89573.0,0.0111772]
[1766993332356,2e-08,89579.0,89563.0,0.0111784]
[1766993332556,0.056,89583.0,89574.0,0.0111771]
[1766993333458,0.056,89583.0,89562.0,0.0111786]
[1766993333659,0.056,89583.0,89572.0,0.0111772]
[1766993334057,0.056,89583.0,89564.0,0.0111783]
[1766993334460,0.056,89583.0,89572.0,0.0111772]
[1766993334957,0.056,89583.0,89575.0,0.0111769]
[1766993337062,0.056,89583.0,89577.0,0.0111766]
[1766993337264,0.056,89583.0,89574.0,0.011177]
[1766993340958,0.056,89583.0,89576.0,0.0111768]
[1766993341468,0.056,89583.0,89575.0,0.0111769]
[1766993344268,0.02485909,89582.0,89575.0,0.0111769]
[1766993344464,0.02485909,89581.0,89575.0,0.0111769]
[1766993344765,0.02485909,89580.0,89575.0,0.0111769]
[1766993344964,0.02485909,89579.0,89575.0,0.0111769]
[1766993345171,9e-08,89578.0,89575.0,0.0111769]
[1766993345367,0.056,89583.0,89575.0,0.0111769]
[1766993350074,0.056,89583.0,89570.0,0.0111775]
[1766993351875,0.056,89583.0,89567.0,0.0111778]
[1766993352167,0.0111762,89582.0,89565.0,0.12281462]
[1766993352570,0.056,89583.0,89565.0,0.12281462]
[1766993352571,0.0111764,89580.0,89565.0,0.11163642]
[1766993352767,0.067176,89583.0,89565.0,0.11163642]
[1766993352969,0.067176,89583.0,89566.0,0.011178]
[1766993353274,0.0111762,89581.0,89566.0,0.011178]
[1766993354174,0.17788614,89580.0,89566.0,0.011178]
[1766993354876,0.0111762,89581.0,89566.0,0.011178]
[1766993355379,0.17788614,89580.0,89566.0,0.011178]
[1766993355976,0.17788614,89580.0,89568.0,0.0111778]
[1766993356182,0.056,89583.0,89568.0,0.0111778]
[1766993357166,0.02474895,89582.0,89568.0,0.0111778]
[1766993357367,0.056,89583.0,89568.0,0.0111778]
[1766993357368,0.02474895,89581.0,89568.0,0.0111778]
[1766993357570,0.02474895,89580.0,89568.0,0.0111778]
[1766993357770,0.02474895,89579.0,89568.0,0.0111778]
[1766993357973,0.02474895,89578.0,89568.0,0.0111778]
[1766993358173,0.02474895,89577.0,89568.0,0.0111778]
[1766993358375,0.02474895,89576.0,89568.0,0.0111778]
[1766993358576,0.02474895,89575.0,89568.0,0.0111778]
[1766993358774,0.056,89583.0,89568.0,0.0111778]
[1766993358971,0.02457777,89582.0,89568.0,0.0111778]
[1766993359173,0.02457777,89581.0,89564.0,0.09496]
[1766993359378,0.02457777,89580.0,89564.0,0.09496]
[1766993359573,0.02457777,89579.0,89565.0,0.11164265]
[1766993359772,0.056,89583.0,89565.0,0.11164265]
[1766993359773,0.02457777,89578.0,89565.0,0.11164265]
[1766993359978,0.02457777,89577.0,89565.0,0.11164265]
[1766993360181,7e-08,89576.0,89565.0,0.11164265]
[1766993360475,0.056,89583.0,89565.0,0.11164265]
[1766993360982,0.056,89583.0,89574.0,0.011177]
[1766993369792,0.056,89583.0,89576.0,0.0111768]
[1766993372388,0.056,89590.0,89571.0,0.056]
[1766993372690,0.056,89590.0,89583.0,0.0111759]
[1766993372891,0.0111741,89598.0,89571.0,0.056]
[1766993373190,0.0111743,89596.0,89571.0,0.056]
[1766993373390,0.00016746,89592.0,89575.0,0.00016746]
[1766993373582,0.056,89591.0,89581.0,0.0111762]
[1766993376798,0.056,89591.0,89578.0,0.0111765]
[1766993377997,0.056,89591.0,89575.0,0.00016746]
[1766993378896,0.0111752,89590.0,89575.0,0.00016746]
[1766993382304,0.0111754,89588.0,89575.0,0.00016746]
[1766993383798,0.056,89591.0,89555.0,0.0111794]
[1766993383995,0.0111758,89585.0,89561.0,0.15096]
[1766993384201,0.0111758,89585.0,89562.0,0.11163019]
[1766993384397,0.0243177,89584.0,89561.0,0.15096]
[1766993384597,0.0243177,89583.0,89561.0,0.15096]
[1766993384898,0.0243177,89582.0,89562.0,0.11163019]
[1766993385195,0.0243177,89581.0,89567.0,0.0111779]
[1766993385389,0.0243177,89580.0,89567.0,0.0111779]
[1766993385591,0.0243177,89579.0,89567.0,0.0111779]
[1766993385790,0.0243177,89578.0,89567.0,0.0111779]
[1766993385987,0.0243177,89577.0,89567.0,0.0111779]
[1766993386188,0.0243177,89576.0,89567.0,0.0111779]
[1766993386395,0.0243177,89575.0,89567.0,0.0111779]
[1766993386593,0.0243177,89574.0,89567.0,0.0111779]
[1766993386794,0.0243177,89573.0,89567.0,0.0111779]
[1766993386994,0.0111756,89586.0,89567.0,0.0111779]
[1766993387194,0.02431604,89585.0,89567.0,0.0111779]
[1766993387496,0.03549194,89584.0,89567.0,0.0111779]
[1766993387806,0.02431604,89583.0,89567.0,0.0111779]
[1766993388106,0.02431604,89582.0,89567.0,0.0111779]
[1766993388307,0.02431604,89581.0,89567.0,0.0111779]
[1766993388605,0.02431604,89580.0,89567.0,0.0111779]
[1766993388907,0.02431604,89579.0,89570.0,0.0111776]
[1766993389205,0.02431604,89578.0,89562.0,0.11164016]
[1766993389394,0.02431604,89577.0,89562.0,0.11164016]
[1766993389596,0.02431604,89576.0,89562.0,0.11164016]
[1766993389796,0.02431604,89575.0,89562.0,0.11164016]
[1766993390001,0.02431604,89574.0,89562.0,0.11164016]
[1766993390201,4e-08,89573.0,89568.0,0.0111777]
[1766993390505,0.0111756,89586.0,89568.0,0.0111777]
[1766993395208,0.0111759,89584.0,89568.0,0.0111777]
[1766993395410,0.0111759,89584.0,89565.0,0.0111781]
[1766993395906,0.09496,89587.0,89562.0,0.11163579]
[1766993396106,0.0111756,89586.0,89569.0,0.0111777]
[1766993396309,0.09496,89587.0,89573.0,0.0111771]
[1766993400711,0.09496,89587.0,89564.0,0.095]
[1766993402416,0.02422457,89586.0,89575.0,0.0111769]
[1766993402714,0.02422457,89585.0,89575.0,0.0111769]
[1766993402916,0.02422457,89584.0,89577.0,0.0111766]
[1766993403214,0.02422457,89583.0,89577.0,0.0111766]
[1766993403414,0.02422457,89582.0,89577.0,0.0111766]
[1766993403603,7e-08,89581.0,89577.0,0.0111766]
[1766993403807,0.09496,89587.0,89577.0,0.0111766]
[1766993404512,0.09496,89587.0,89564.0,0.095]
[1766993404714,6e-08,89592.0,89589.0,0.0111751]
[1766993404917,0.056,89610.0,89599.0,0.0111739]
[1766993405118,0.056,89609.0,89585.0,0.095]
[1766993405620,0.056,89609.0,89600.0,0.0111738]
[1766993405808,0.056,89609.0,89596.0,0.00016746]
[1766993406316,0.0111728,89608.0,89596.0,0.00016746]
[1766993406706,0.0111728,89608.0,89585.0,0.095]
[1766993406707,0.0111746,89594.0,89561.0,0.0111786]
[1766993406906,0.056,89594.0,89574.0,0.011177]
[1766993407106,0.056,89594.0,89563.0,0.11160153]
[1766993407308,0.0111748,89593.0,89573.0,0.0111771]
[1766993407506,0.056,89594.0,89569.0,0.0111776]
[1766993407713,0.0111753,89589.0,89569.0,0.0111776]
[1766993407910,0.0111753,89589.0,89571.0,0.0111774]
[1766993408215,0.00016746,89590.0,89566.0,0.09496]
[1766993408419,0.0111757,89586.0,89567.0,0.0111779]
[1766993409016,0.0111754,89588.0,89569.0,0.0111776]
[1766993409613,0.00016746,89590.0,89569.0,0.0111776]
[1766993409811,0.0111753,89589.0,89569.0,0.0111776]
[1766993410010,0.0111755,89587.0,89569.0,0.0111776]
[1766993410216,0.056,89586.0,89569.0,0.0111776]
[1766993413117,0.056,89586.0,89566.0,0.106138]
[1766993413321,0.056,89586.0,89568.0,0.0111778]
[1766993413721,0.056,89586.0,89566.0,0.09496]
[1766993414225,0.0111763,89581.0,89566.0,0.09496]
[1766993414426,0.0111759,89584.0,89560.0,0.00013888]
[1766993414606,0.0111759,89584.0,89529.0,0.0111827]
[1766993414607,0.09496,89583.0,89538.0,0.0111815]
[1766993414912,0.17801051,89580.0,89547.0,0.09496]
[1766993415112,0.106136,89583.0,89547.0,0.09496]
[1766993415316,0.09496,89583.0,89551.0,0.0111799]
[1766993415521,0.00013776,89582.0,89561.0,0.0111786]
[1766993415721,0.02417804,89582.0,89561.0,0.0045386]
[1766993415921,0.02404028,89581.0,89563.0,0.0111783]
[1766993416423,0.02404028,89581.0,89565.0,0.0111781]
[1766993416824,0.02404028,89581.0,89562.0,0.0111785]
[1766993417317,0.0111766,89579.0,89547.0,0.09496]
[1766993417519,0.02404028,89578.0,89560.0,0.0111787]
[1766993417709,0.08004028,89577.0,89560.0,0.0111787]
[1766993417913,0.02404028,89576.0,89560.0,0.0111787]
[1766993418114,0.02404028,89575.0,89560.0,0.0111787]
[1766993418423,0.02404028,89574.0,89547.0,0.09496]
[1766993418610,0.00016746,89570.0,89550.0,0.17804746]
[1766993418812,0.02404028,89569.0,89550.0,0.17804746]
[1766993419011,0.02404028,89568.0,89550.0,0.17804746]
[1766993419220,0.00016746,89570.0,89556.0,0.0111792]
[1766993419419,0.02376763,89569.0,89556.0,0.0111792]
[1766993419720,0.00016746,89570.0,89556.0,0.0111792]
[1766993419919,0.02376764,89569.0,89556.0,0.0111792]
[1766993420121,0.00016746,89570.0,89556.0,0.0111792]
[1766993420322,0.02376764,89569.0,89556.0,0.0111792]
[1766993420516,0.00016746,89570.0,89556.0,0.0111792]
[1766993420718,0.02376413,89569.0,89556.0,0.0111792]
[1766993420918,0.00016746,89570.0,89556.0,0.0111792]
[1766993421119,0.02376413,89569.0,89556.0,0.0111792]
[1766993421316,0.00016746,89570.0,89556.0,0.0111792]
[1766993421623,0.02376106,89569.0,89556.0,0.0111792]
[1766993421822,0.00016746,89570.0,89558.0,0.011179]
[1766993422024,0.02376123,89569.0,89558.0,0.011179]
[1766993422219,0.00016746,89570.0,89558.0,0.011179]
[1766993423825,0.00016746,89570.0,89560.0,0.0111788]
[1766993424228,0.00016746,89570.0,89557.0,0.0111792]
[1766993424830,0.02375475,89569.0,89557.0,0.0111792]
[1766993425028,0.02375475,89568.0,89557.0,0.0111792]
[1766993425328,0.02375475,89567.0,89557.0,0.0111792]
[1766993425521,0.02375475,89566.0,89557.0,0.0111792]
[1766993425720,0.00016746,89570.0,89557.0,0.0111792]
[1766993425921,0.02375306,89569.0,89557.0,0.0111792]
[1766993426121,0.02375306,89568.0,89557.0,0.0111792]
[1766993426331,0.02375306,89567.0,89559.0,0.0111789]
[1766993426523,0.02375306,89566.0,89559.0,0.0111789]
[1766993426728,0.00016746,89570.0,89559.0,0.0111789]
[1766993426929,0.02375171,89569.0,89559.0,0.0111789]
[1766993427229,0.02375171,89568.0,89559.0,0.0111789]
[1766993427430,0.02375171,89567.0,89559.0,0.0111789]
[1766993427731,0.02375171,89566.0,89561.0,0.0111786]
[1766993427933,0.00016746,89570.0,89561.0,0.0111786]